bitfinex/quotes_SOLUSD_20240622
["timestamp","ask_amount","ask_price","bid_price","bid_amount"]
[1719040788969,6.45,135.13,135.09,7.402]
[1719040789565,6.45,135.13,135.04,34.5414]
[1719040789750,6.45,135.11,135.06,6.45]
[1719040790143,6.45,135.11,135.08,7.4029]
[1719040790544,7.4003,135.13,135.08,7.4029]
[1719040790783,6.5455,135.06,135.0,1.0]
[1719040790981,6.45,135.01,135.0,1.0]
[1719040791151,15.1169,135.05,135.0,1.0]
[1719040791152,7.4058,135.03,135.0,1.0]
[1719040791547,15.1169,135.05,134.95,7.41]
[1719040791775,15.1169,135.05,134.97,6.45]
[1719040791952,15.1169,135.08,134.99,8.2963139]
[1719040792273,6.45,135.04,134.99,0.8889139]
[1719040792472,6.45,135.04,134.99,7.3389139]
[1719040792678,6.45,135.04,134.99,0.8889139]
[1719040793056,13.8548,135.05,134.99,0.8889139]
[1719040793283,6.5455,135.09,134.99,0.8889139]
[1719040793581,6.45,135.06,135.01,6.45]
[1719040793878,41.6624,135.05,134.99,0.8889139]
[1719040794087,7.4035,135.07,134.99,14.7466139]
[1719040794388,20.0,135.08,134.99,14.7466139]
[1719040794389,6.45,135.05,134.99,8.2966139]
[1719040794592,7.4042,135.06,134.99,14.7466139]
[1719040795253,20.0,135.08,134.99,7.3389139]
[1719040795456,20.0,135.08,134.99,0.8889139]
[1719040795683,6.45,135.04,134.99,7.3389139]
[1719040796085,6.45,135.03,134.99,0.8889139]
[1719040796282,7.405,135.05,134.99,0.8889139]
[1719040796463,6.45,135.03,134.99,0.8889139]
[1719040797662,6.45,135.03,134.99,8.2967139]
[1719040797961,6.45,135.06,135.01,7.4064]
[1719040798167,6.45,135.06,135.0,13.8572]
[1719040798470,6.45,135.06,135.0,7.4072]
[1719040798674,20.0,135.08,135.06,7.404]
[1719040798875,20.0,135.11,135.05,7.4041]
[1719040799259,20.0,135.11,135.03,22.9688]
[1719040799473,6.45,135.09,135.04,7.4051]
[1719040799694,6.45,135.09,135.03,30.3743]
[1719040800372,20.0,135.12,135.03,30.3743]
[1719040800373,20.0,135.12,135.03,22.9688]
[1719040800597,6.45,135.09,135.04,6.45]
[1719040800793,7.4015,135.11,135.04,13.855]
[1719040800990,27.4008,135.12,135.05,7.4042]
[1719040801290,6.45,135.1,135.05,7.4042]
[1719040801495,20.0,135.12,135.06,6.45]
[1719040801686,6.45,135.12,135.07,13.8531]
[1719040802279,6.45,135.12,135.07,7.4031]
[1719040802479,22.571,135.16,135.08,13.8528]
[1719040802705,27.3995,135.15,135.08,13.8528]
[1719040803014,6.45,135.14,135.09,13.8524]
[1719040803311,6.4004,135.19,135.1,7.4017]
[1719040803602,7.3984,135.17,135.1,7.4017]
[1719040803809,7.3987,135.16,135.1,7.4017]
[1719040804315,7.3992,135.15,135.05,19.36]
[1719040804600,7.3993,135.15,135.08,7.4026]
[1719040804809,7.3993,135.15,135.06,45.0]
[1719040805105,7.3987,135.16,135.06,45.0]
[1719040805309,7.3987,135.16,135.1,7.4017]
[1719040805808,6.4004,135.19,135.1,7.4017]
[1719040805809,7.3982,135.17,135.1,7.4017]
[1719040806104,7.3975,135.18,135.11,7.4012]
[1719040806611,7.3982,135.17,135.11,7.4012]
[1719040806794,7.3977,135.18,135.12,7.4007]
[1719040807796,7.397,135.19,135.13,7.4002]
[1719040808985,7.3965,135.2,135.13,7.4002]
[1719040809495,7.3965,135.2,135.14,7.3995]
[1719040810592,18.4843,135.25,135.12,18.5017]
[1719040810795,7.395,135.23,135.13,63.4994]
[1719040811111,7.395,135.23,135.16,7.3984]
[1719040811285,18.4843,135.25,135.16,7.3985]
[1719040811286,7.3953,135.22,135.16,7.3985]
[1719040811490,7.395,135.23,135.17,7.3979]
[1719040812517,25.1437,135.27,135.18,7.3971]
[1719040812722,7.3941,135.25,135.19,7.3969]
[1719040813913,7.393,135.27,135.2,7.3961]
[1719040814213,7.3932,135.26,135.2,7.3961]
[1719040815110,7.3932,135.26,135.21,7.3958]
[1719040815818,7.3932,135.26,135.2,7.3962]
[1719040816704,7.413,135.32,135.27,7.3923]
[1719040816909,7.413,135.32,135.23,18.4856]
[1719040817107,7.413,135.3,135.25,7.3934]
[1719040818311,14.8041,135.3,135.24,7.3941]
[1719040819516,7.413,135.3,135.22,18.4881]
[1719040819721,7.413,135.3,135.25,7.3935]
[1719040819927,7.413,135.3,135.26,7.3931]
[1719040820600,7.413,135.31,135.26,7.3931]
[1719040821190,14.8038,135.31,135.25,7.3935]
[1719040821427,7.413,135.3,135.23,45.0]
[1719040821624,7.413,135.3,135.25,7.3934]
[1719040822035,7.413,135.3,135.26,7.393]
[1719040822401,7.413,135.31,135.26,7.393]
[1719040822603,7.413,135.31,135.27,7.3926]
[1719040823428,7.413,135.31,135.26,7.3929]
[1719040823725,7.413,135.32,135.27,7.3925]
[1719040824299,14.803,135.32,135.26,7.3929]
[1719040825334,7.413,135.32,135.27,7.3924]
[1719040825712,7.413,135.32,135.25,18.484]
[1719040826022,7.413,135.32,135.27,7.3923]
[1719040829050,7.413,135.31,135.29,7.3915]
[1719040829198,7.413,135.31,135.3,7.3909]
[1719040830019,7.413,135.31,135.3,13.8309]
[1719040830715,7.413,135.31,135.3,6.44]
[1719040830907,7.3889,135.34,135.3,6.44]
[1719040830908,7.413,135.33,135.3,6.44]
[1719040831224,7.413,135.33,135.24,32.2065]
[1719040831225,14.8041,135.3,135.24,22.8308]
[1719040831527,14.8045,135.3,135.24,30.225]
[1719040831733,7.413,135.3,135.25,7.3936]
[1719040832130,7.413,135.3,135.24,22.8308]
[1719040832626,7.413,135.3,135.25,7.3936]
[1719040833843,7.413,135.3,135.24,41.3163]
[1719040834126,7.413,135.3,135.27,7.3921]
[1719040834431,7.413,135.34,135.28,7.392]
[1719040834635,7.413,135.34,135.29,7.3914]
[1719040835314,7.413,135.34,135.25,64.32]
[1719040835514,7.413,135.32,135.27,7.3921]
[1719040836133,7.413,135.32,135.29,7.3911]
[1719040836529,7.413,135.34,135.29,7.3911]
[1719040836727,7.413,135.34,135.25,101.2883]
[1719040837028,7.413,135.34,135.31,7.3901]
[1719040837407,7.413,135.34,135.32,7.3896]
[1719040837604,7.413,135.37,135.32,7.3896]
[1719040838010,7.413,135.37,135.33,7.3892]
[1719040838210,7.413,135.37,135.32,7.3897]
[1719040838409,7.413,135.37,135.33,7.3892]
[1719040838623,7.413,135.38,135.33,7.3892]
[1719040839736,7.413,135.38,135.32,7.3897]
[1719040840741,14.7996,135.38,135.32,7.3897]
[1719040842134,7.413,135.37,135.33,7.3892]
[1719040842319,7.413,135.37,135.3,24.5081]
[1719040842519,7.413,135.37,135.33,7.3891]
[1719040843214,7.413,135.38,135.33,7.3891]
[1719040844540,7.413,135.37,135.35,7.3882]
[1719040845341,7.413,135.37,135.32,18.4745]
[1719040845509,7.413,135.41,135.33,45.0]
[1719040845711,7.413,135.37,135.32,7.3897]
[1719040846130,7.413,135.37,135.29,16.3843]
[1719040846433,14.8015,135.35,135.29,7.3913]
[1719040846816,14.8015,135.35,135.3,7.3909]
[1719040847017,14.8015,135.35,135.28,7.3915]
[1719040847243,14.8015,135.35,135.29,7.3913]
[1719040847443,14.8015,135.35,135.3,7.3909]
[1719040848635,7.413,135.35,135.3,7.3907]
[1719040849145,14.8013,135.35,135.29,7.3913]
[1719040849938,14.8013,135.35,135.3,7.3909]
[1719040850130,7.413,135.35,135.3,7.3909]
[1719040850330,7.413,135.34,135.32,7.3896]
[1719040850840,7.413,135.34,135.33,7.3893]
[1719040851017,7.413,135.34,135.32,7.3897]
[1719040851339,7.413,135.36,135.32,7.3897]
[1719040852031,7.413,135.36,135.29,18.4786]
[1719040852641,7.413,135.36,135.33,7.3893]
[1719040852939,7.413,135.36,135.32,7.3896]
[1719040855114,7.413,135.36,135.3,18.4761]
[1719040855320,7.413,135.36,135.34,7.3883]
[1719040855542,7.413,135.36,135.33,7.3892]
[1719040856110,7.413,135.36,135.32,7.3896]
[1719040857853,7.413,135.37,135.32,16.6303]
[1719040858140,7.413,135.37,135.35,7.3882]
[1719040858916,30.585,135.39,135.29,18.4787]
[1719040859131,30.585,135.39,135.3,45.0]
[1719040859419,7.413,135.37,135.32,7.3897]
[1719040860520,16.5149,135.35,135.27,18.4814]
[1719040860728,14.8021,135.34,135.28,7.3919]
[1719040861030,7.413,135.32,135.25,16.6303]
[1719040861232,7.413,135.32,135.29,7.3913]
[1719040861552,7.413,135.32,135.29,7.3914]
[1719040861728,7.413,135.32,135.29,7.3911]
[1719040862053,7.413,135.33,135.27,18.4804]
[1719040862934,7.413,135.34,135.25,35.1144]
[1719040863133,7.413,135.32,135.26,45.0]
[1719040863331,7.413,135.32,135.27,7.3923]
[1719040863541,7.413,135.32,135.28,7.3919]
[1719040863852,7.413,135.32,135.26,45.0]
[1719040864028,14.8028,135.32,135.27,7.3923]
[1719040864225,7.413,135.3,135.25,7.3934]
[1719040864442,7.413,135.3,135.19,277.3692]
[1719040864443,23.9279,135.3,135.19,6.6283]
[1719040864634,6.6571,135.27,135.15,59.0935]
[1719040864947,6.6571,135.27,135.16,56.9918]
[1719040865246,6.6571,135.27,135.23,7.3947]
[1719040865445,6.6571,135.27,135.22,7.3951]
[1719040866143,6.6571,135.27,135.23,7.3945]
[1719040866352,6.6571,135.27,135.19,18.4916]
[1719040866537,6.6571,135.27,135.23,7.3948]
[1719040867247,6.6571,135.27,135.22,7.3951]
[1719040867626,6.6571,135.27,135.19,18.4916]
[1719040867627,6.6571,135.27,135.23,7.3946]
[1719040868535,7.413,135.29,135.24,7.3942]
[1719040868838,7.413,135.29,135.25,7.3936]
[1719040869549,7.413,135.29,135.26,7.393]
[1719040869932,7.413,135.29,135.21,35.9503]
[1719040870134,7.413,135.29,135.22,45.0]
[1719040870354,7.413,135.29,135.24,7.394]
[1719040870555,7.413,135.29,135.25,7.3936]
[1719040871433,7.413,135.29,135.23,18.4858]
[1719040871633,7.413,135.29,135.24,45.0]
[1719040872157,7.413,135.31,135.24,45.0]
[1719040872532,14.8034,135.31,135.26,7.3929]
[1719040873765,14.8031,135.32,135.26,7.3929]
[1719040875357,7.413,135.32,135.28,7.3917]
[1719040875855,7.413,135.32,135.27,52.3923]
[1719040876066,7.413,135.32,135.22,36.9757]
[1719040876067,7.413,135.32,135.26,7.3929]
[1719040876230,14.8031,135.32,135.26,7.3929]
[1719040876655,7.413,135.32,135.28,7.392]
[1719040877053,7.413,135.32,135.27,7.3924]
[1719040878455,7.413,135.32,135.28,7.3919]
[1719040878754,7.413,135.32,135.21,42.3402]
[1719040879057,7.413,135.3,135.21,16.6303]
[1719040879291,7.3923,135.28,135.23,7.3945]
[1719040879562,7.3917,135.29,135.23,7.3945]
[1719040879931,7.3917,135.29,135.24,7.3942]
[1719040880363,14.8041,135.3,135.24,7.3942]
[1719040881356,7.413,135.3,135.26,7.3928]
[1719040881556,7.413,135.3,135.23,18.4869]
[1719040881750,7.413,135.3,135.27,7.3922]
[1719040882246,7.413,135.3,135.24,45.0]
[1719040882432,7.413,135.31,135.27,7.3925]
[1719040882638,14.8035,135.31,135.26,7.3929]
[1719040882941,14.8035,135.31,135.26,7.393]
[1719040883144,7.413,135.31,135.26,7.393]
[1719040883554,7.413,135.32,135.27,7.3925]
[1719040884670,7.413,135.32,135.24,45.0]
[1719040884970,7.413,135.32,135.29,7.3914]
[1719040885641,7.413,135.32,135.3,7.3909]
[1719040886054,7.413,135.35,135.3,7.3909]
[1719040888567,7.413,135.35,135.25,56.2875]
[1719040888758,7.413,135.35,135.28,19.32]
[1719040888950,7.413,135.35,135.32,7.3895]
[1719040889558,7.413,135.35,135.28,37.7991]
[1719040889559,7.413,135.35,135.33,7.3888]
[1719040889956,7.413,135.38,135.31,18.476]
[1719040890173,7.413,135.38,135.35,7.3881]
[1719040890354,7.413,135.38,135.34,7.3885]
[1719040890862,7.413,135.38,135.35,7.388]
[1719040893574,7.413,135.38,135.34,7.3885]
[1719040893774,7.413,135.38,135.35,7.3882]
[1719040896071,7.413,135.4,135.37,7.3868]
[1719040896463,7.413,135.4,135.36,7.3874]
[1719040896659,7.413,135.4,135.34,18.4707]
[1719040896974,7.413,135.4,135.36,7.3874]
[1719040897171,7.413,135.41,135.36,7.3874]
[1719040897885,14.7983,135.41,135.35,7.388]
[1719040898053,7.413,135.39,135.35,7.388]
[1719040898457,7.413,135.39,135.36,7.3876]
[1719040899282,7.3852,135.41,135.31,19.32]
[1719040899283,7.413,135.4,135.37,7.3868]
[1719040899975,7.413,135.4,135.36,7.3875]
[1719040901272,7.413,135.39,135.32,18.4746]
[1719040901966,7.413,135.39,135.33,18.4721]
[1719040902174,7.413,135.39,135.37,7.3871]
[1719040902365,7.413,135.41,135.36,7.3874]
[1719040904584,14.7982,135.41,135.36,7.3874]
[1719040906188,14.7991,135.39,135.34,7.3885]
[1719040906681,7.413,135.39,135.34,7.3885]
[1719040908366,7.413,135.39,135.27,56.2811]
[1719040908683,7.413,135.39,135.35,7.3878]
[1719040909169,7.413,135.39,135.34,7.3885]
[1719040910064,7.413,135.39,135.35,7.3881]
[1719040911387,7.413,135.39,135.36,7.3877]
[1719040911885,7.413,135.39,135.35,7.388]
[1719040913386,7.413,135.39,135.36,7.3875]
[1719040920608,7.413,135.39,135.35,13.8179]
[1719040921002,7.413,135.39,135.35,7.3879]
[1719040921820,7.413,135.39,135.34,7.3887]
[1719040921972,7.413,135.37,135.34,7.3887]
[1719040925013,7.413,135.35,135.33,7.3891]
[1719040925313,7.413,135.35,135.32,7.3896]
[1719040925613,13.843,135.35,135.32,7.3896]
[1719040925904,7.413,135.36,135.32,7.3896]
[1719040926111,7.413,135.34,135.32,7.3896]
[1719040927111,7.413,135.35,135.32,7.3896]
[1719040927778,7.413,135.35,135.33,7.3892]
[1719040928415,7.413,135.36,135.33,7.3892]
[1719040929385,7.413,135.36,135.26,58.9207]
[1719040929584,7.413,135.36,135.34,6.43]
[1719040930525,7.413,135.36,135.35,7.3882]
[1719040930691,7.413,135.36,135.34,6.43]
[1719040931110,7.413,135.38,135.36,7.3873]
[1719040931321,7.413,135.38,135.36,13.8173]
[1719040931523,7.413,135.38,135.37,7.3871]
[1719040932014,7.413,135.38,135.36,13.8175]
[1719040932200,21.3157,135.4,135.33,18.4731]
[1719040932201,7.413,135.37,135.35,13.8179]
[1719040932690,7.413,135.37,135.34,13.8185]
[1719040932890,7.413,135.37,135.34,7.3885]
[1719040933110,21.3157,135.4,135.27,45.0]
[1719040933111,13.843,135.35,135.3,13.8207]
[1719040933313,13.843,135.35,135.31,7.3903]
[1719040933615,36.9333,135.35,135.3,7.3909]
[1719040933799,36.9333,135.35,135.27,6.43]
[1719040933800,7.413,135.31,135.27,6.43]
[1719040934112,7.413,135.31,135.26,7.3929]
[1719040934113,13.843,135.31,135.26,7.3929]
[1719040934314,7.3921,135.28,135.21,639.1]
[1719040934613,13.72,135.27,135.22,7.395]
[1719040934797,27.5428,135.27,135.21,7.3957]
[1719040934999,27.5428,135.27,135.21,13.8257]
[1719040935199,7.413,135.25,135.22,7.3953]
[1719040935616,7.413,135.25,135.23,7.3947]
[1719040935826,7.413,135.25,135.22,7.3949]
[1719040936036,7.413,135.25,135.21,7.3956]
[1719040936226,7.413,135.26,135.21,7.3956]
[1719040937347,7.413,135.26,135.24,7.3942]
[1719040939359,7.413,135.26,135.23,7.3945]
[1719040943005,7.413,135.26,135.24,7.3942]
[1719040943726,7.413,135.26,135.22,7.3952]
[1719040945356,7.413,135.26,135.2,18.4899]
[1719040945537,7.413,135.26,135.23,7.3946]
[1719040947440,7.413,135.27,135.24,7.3941]
[1719040948635,7.413,135.27,135.23,7.3945]
[1719040949156,7.413,135.25,135.21,7.3957]
[1719040949659,7.413,135.25,135.2,7.3962]
[1719040949828,7.413,135.25,135.21,7.3958]
[1719040950221,7.413,135.25,135.18,18.4936]
[1719040950222,7.413,135.24,135.22,7.3952]
[1719040950844,7.413,135.24,135.23,7.3948]
[1719040951239,7.413,135.27,135.19,19.33]
[1719040951432,7.413,135.27,135.2,45.0]
[1719040952756,14.8059,135.27,135.22,7.3951]
[1719040953741,7.413,135.27,135.23,7.3947]
[1719040956964,7.413,135.26,135.25,7.3937]
[1719040957164,7.413,135.26,135.25,52.3937]
[1719040957867,7.413,135.31,135.28,7.3918]
[1719040958960,7.413,135.31,135.27,7.3923]
[1719040959273,7.413,135.31,135.25,45.0]
[1719040959274,7.413,135.31,135.28,7.392]
[1719040961905,7.413,135.32,135.29,7.3914]
[1719040962066,7.413,135.32,135.25,64.33]
[1719040962245,7.413,135.32,135.31,7.3904]
[1719040962977,7.413,135.34,135.32,7.3898]
[1719040963264,7.413,135.34,135.3,7.3907]
[1719040963873,7.413,135.34,135.31,7.3904]
[1719040965448,7.413,135.36,135.29,18.4776]
[1719040965670,7.413,135.36,135.3,45.0]
[1719040965854,7.413,135.36,135.33,7.3893]
[1719040966579,7.413,135.37,135.33,7.3893]
[1719040967039,7.413,135.37,135.34,7.3886]
[1719040967871,7.413,135.37,135.33,7.389]
[1719040969553,7.413,135.37,135.34,6.43]
[1719040969959,14.8005,135.37,135.3,45.0]
[1719040970274,7.413,135.37,135.32,13.8194]
[1719040970649,7.413,135.37,135.33,6.43]
[1719040970850,14.8002,135.37,135.33,6.43]
[1719040971361,7.413,135.37,135.33,13.8193]
[1719040972667,7.413,135.37,135.34,7.3887]
[1719040974344,7.413,135.37,135.34,13.8187]
[1719040974544,7.413,135.37,135.34,7.3887]
[1719040974872,7.413,135.37,135.34,6.8887]
[1719040975062,7.413,135.37,135.34,13.3187]
[1719040976650,7.413,135.39,135.36,13.8175]
[1719040976977,7.413,135.39,135.35,6.43]
[1719040977153,14.7991,135.39,135.35,6.43]
[1719040977343,14.7991,135.39,135.34,13.8185]
[1719040978163,7.413,135.39,135.35,13.8182]
[1719040979895,7.413,135.38,135.36,6.43]
[1719040980181,7.413,135.38,135.35,13.8182]
[1719040981094,7.413,135.4,135.35,13.8182]
[1719040983264,21.2285,135.4,135.35,7.3882]
[1719040983458,21.2285,135.4,135.35,6.43]
[1719040983658,7.413,135.38,135.34,13.8185]
[1719040984589,7.413,135.38,135.34,13.3185]
[1719040984897,7.413,135.39,135.35,7.388]
[1719040985060,7.413,135.39,135.35,13.818]
[1719040985262,7.413,135.39,135.36,6.43]
[1719040985662,7.413,135.39,135.35,13.818]
[1719040988599,7.413,135.39,135.35,7.388]
[1719040989298,7.413,135.39,135.35,13.818]
[1719040990094,7.413,135.4,135.35,13.818]
[1719040992178,7.413,135.4,135.36,7.3876]
[1719040995805,7.413,135.4,135.36,6.8876]
[1719040998499,7.413,135.4,135.35,6.43]
[1719040998720,7.413,135.4,135.36,7.3874]
[1719041000105,7.413,135.4,135.36,13.8174]
[1719041005783,7.413,135.4,135.36,13.3174]
[1719041008581,7.413,135.4,135.36,6.8874]
[1719041009009,7.413,135.4,135.36,13.3174]
[1719041009826,13.843,135.4,135.31,59.5695]
[1719041009988,14.7997,135.38,135.34,6.43]
[1719041010191,14.7997,135.38,135.33,13.819]
[1719041010717,7.413,135.38,135.34,7.3887]
[1719041011595,7.413,135.38,135.34,13.8187]
[1719041013287,7.413,135.38,135.35,7.3882]
[1719041013487,13.843,135.38,135.29,18.4786]
[1719041013720,7.413,135.35,135.32,7.3897]
[1719041014300,7.413,135.35,135.31,13.8203]
[1719041015011,7.413,135.35,135.31,7.3903]
[1719041015196,21.2313,135.35,135.3,13.8208]
[1719041015395,13.843,135.35,135.31,7.3903]
[1719041016917,7.413,135.35,135.32,7.3897]
[1719041018331,7.413,135.35,135.31,13.8201]
[1719041020922,14.8012,135.35,135.31,6.43]
[1719041021228,14.8012,135.35,135.3,13.8207]
[1719041022108,7.413,135.35,135.31,13.8204]
[1719041023130,14.8013,135.35,135.3,7.3907]
[1719041023431,14.8013,135.35,135.29,7.3912]
[1719041023432,7.413,135.33,135.29,7.3912]
[1719041023721,14.8024,135.33,135.28,13.8218]
[1719041023927,21.2324,135.33,135.28,13.8218]
[1719041024310,13.843,135.33,135.29,7.3915]
[1719041024495,7.413,135.33,135.29,7.3915]
[1719041030228,14.8023,135.33,135.29,7.3915]
[1719041030834,21.2323,135.33,135.29,7.3915]
[1719041031027,21.2323,135.33,135.28,7.3918]
[1719041032635,13.843,135.32,135.28,7.3918]
[1719041033336,13.843,135.32,135.29,7.3913]
[1719041034031,13.843,135.32,135.28,7.3919]
[1719041034841,21.2329,135.32,135.27,7.3922]
[1719041035016,21.2329,135.32,135.27,13.8222]
[1719041035624,14.8029,135.32,135.27,13.8222]
[1719041035818,13.843,135.32,135.28,7.3919]
[1719041038734,16.2661,135.31,135.27,7.3923]
[1719041039137,30.1091,135.31,135.27,7.3923]
[1719041039747,6.43,135.3,135.26,7.3929]
[1719041039914,6.43,135.3,135.25,7.3934]
[1719041039915,13.821,135.3,135.25,7.3934]
[1719041040117,6.43,135.3,135.26,7.3931]
[1719041042042,6.43,135.29,135.26,7.3931]
[1719041042741,6.43,135.29,135.25,7.3934]
[1719041042935,6.43,135.29,135.26,7.3928]
[1719041043149,37.0838,135.31,135.26,7.3928]
[1719041043443,13.821,135.3,135.25,13.8235]
[1719041043749,6.43,135.3,135.26,7.3931]
[1719041045723,13.8218,135.29,135.24,7.3939]
[1719041045920,6.43,135.28,135.24,7.3939]
[1719041050744,7.3928,135.27,135.22,7.395]
[1719041051057,6.43,135.26,135.22,7.395]
[1719041051241,6.43,135.26,135.21,6.43]
[1719041051242,6.43,135.25,135.21,7.3957]
[1719041051648,22.3395,135.25,135.21,7.3957]
[1719041052129,22.3395,135.25,135.22,7.3952]
[1719041052324,15.9095,135.25,135.22,7.3952]
[1719041052934,15.9095,135.25,135.21,13.8256]
[1719041056659,23.3032,135.25,135.21,13.8256]
[1719041056857,29.7332,135.25,135.2,13.8263]
[1719041057548,7.3943,135.24,135.2,7.3963]
[1719041057862,7.3943,135.24,135.2,13.8263]
[1719041061360,29.7334,135.25,135.2,13.8263]
[1719041062966,7.3942,135.24,135.2,6.43]
[1719041063943,15.9095,135.25,135.15,15.0336]
[1719041064145,15.9095,135.25,135.18,6.43]
[1719041064455,22.3333,135.21,135.12,6.1876]
[1719041064638,7.3981,135.17,135.12,7.4005]
[1719041064839,7.3987,135.16,135.11,7.4012]
[1719041065066,7.3987,135.16,135.12,6.43]
[1719041065268,7.3983,135.17,135.12,13.8307]
[1719041065770,13.8283,135.17,135.12,7.4007]
[1719041065940,13.8283,135.17,135.12,13.8307]
[1719041067140,13.8283,135.17,135.13,6.43]
[1719041067141,7.3983,135.17,135.13,6.43]
[1719041069755,22.3333,135.21,135.1,39.9672]
[1719041070069,7.3976,135.18,135.15,6.43]
[1719041070366,7.3981,135.17,135.13,6.43]
[1719041070542,7.3981,135.17,135.12,13.8306]
[1719041070543,13.8281,135.17,135.12,13.8306]
[1719041070748,7.3987,135.16,135.11,7.4011]
[1719041070944,13.8287,135.16,135.11,13.8311]
[1719041071146,13.83,135.14,135.09,7.402]
[1719041071361,7.4003,135.13,135.08,7.4027]
[1719041071571,13.83,135.14,135.09,7.4023]
[1719041072151,13.83,135.14,135.09,13.8323]
[1719041074051,7.4,135.14,135.09,13.8323]
[1719041075456,7.4003,135.13,135.09,6.43]
[1719041079361,7.4009,135.12,135.09,6.43]
[1719041081274,7.4005,135.13,135.09,6.43]
[1719041081658,7.3998,135.14,135.11,6.43]
[1719041082578,7.4003,135.13,135.1,6.43]
[1719041083670,7.3999,135.14,135.1,6.43]
[1719041083873,7.3999,135.14,135.11,6.43]
[1719041088779,16.1487,135.18,135.12,6.43]
[1719041088988,7.3994,135.15,135.12,6.43]
[1719041089180,7.3994,135.15,135.11,6.43]
[1719041089888,7.3998,135.14,135.1,7.4017]
[1719041090182,7.3998,135.14,135.11,6.43]
[1719041090559,7.3998,135.14,135.09,7.4022]
[1719041090764,7.4003,135.13,135.1,6.43]
[1719041091282,7.3999,135.14,135.1,6.43]
[1719041092268,13.8293,135.15,135.1,13.8318]
[1719041094393,16.1487,135.18,135.12,7.4008]
[1719041094572,16.1487,135.18,135.12,13.8308]
[1719041094775,22.5787,135.18,135.12,13.8308]
[1719041095591,7.3995,135.15,135.11,6.43]
[1719041100397,7.3995,135.15,135.1,7.4016]
[1719041100696,7.3995,135.15,135.12,6.43]
[1719041106535,7.4003,135.13,135.08,7.4027]
[1719041106841,7.4008,135.12,135.07,7.4033]
[1719041107120,7.4003,135.13,135.09,6.43]
[1719041107537,7.4003,135.13,135.1,6.43]
[1719041107713,7.3999,135.14,135.1,6.43]
[1719041109106,7.4002,135.13,135.1,6.43]
[1719041109525,7.3999,135.14,135.1,6.43]
[1719041111617,7.3999,135.14,135.09,7.4023]
[1719041111918,7.3999,135.14,135.1,6.43]
[1719041112137,13.8294,135.15,135.1,13.8318]
[1719041112337,7.3997,135.14,135.1,13.8318]
[1719041112626,13.8294,135.15,135.1,13.8318]
[1719041113806,7.3994,135.15,135.1,13.8318]
[1719041114031,13.8294,135.15,135.1,13.8318]
[1719041114818,7.3997,135.14,135.1,13.8318]